{"text_format":"1","workbook":"xlsx","n_sheets":5,"sheets":["Instruccions ","1 -Informe d'admesos i exclosos","2 - Criteris i barems","3 - Informe de selecció","Desplegables"],"not_rendered":{"charts":0,"images":4,"macros":1,"external_links":0,"defined_names":5,"comments":0,"pivot_tables":0},"unopened":[],"bounds":{"document_bytes":16777216,"sheet_cells":100000,"rows_first":2000,"rows_last":500,"rows_between":2000,"halvings":0,"cell_chars":16384,"cell_head_chars":4096},"cells_cut":0,"cells_raw":0,"read":"whole","date_system":"1900"}

{"sheet":"Instruccions ","index":0,"n_rows":0,"n_cols":0,"rows_kept":0,"cut":false,"hidden":false,"merged":[]}

{"sheet":"1 -Informe d'admesos i exclosos","index":1,"n_rows":37,"n_cols":5,"rows_kept":37,"cut":false,"hidden":false,"merged":[[1,1,1,4],[8,1,8,2],[9,1,9,2],[4,1,4,2],[5,1,5,2],[6,1,6,2]]}
[]
[null,"INFORME D'ADMESOS I EXCLOSOS"]
[]
[]
[null,"Referència convocatòria:"]
[null,"Departament / Institut / Centre de recerca: "]
[null,"Categoria:"]
[null,"Investigador principal"]
[null,"Cognoms i nom:"]
[null,"Càrrec:"]
[]
[null,"Candidat","Cognoms i nom","Admès o exclòs","Motiu d'exclusió "]
[null,1]
[null,2]
[null,3]
[null,4]
[null,5]
[null,6]
[null,7]
[null,8]
[null,9]
[null,10]
[null,11]
[null,12]
[null,13]
[null,14]
[null,15]
[null,16]
[null,17]
[null,18]
[null,19]
[null,20]
[null,21]
[null,22]
[null,23]
[null,24]
[null,25]

{"sheet":"2 - Criteris i barems","index":2,"n_rows":17,"n_cols":5,"rows_kept":17,"cut":false,"hidden":false,"merged":[[11,6,11,7],[9,1,9,2],[1,1,1,2],[2,1,2,2],[3,1,3,2],[1,3,1,4],[2,3,2,4],[3,3,3,4],[5,1,5,2],[6,1,6,2],[4,1,4,4],[5,3,5,4],[6,3,6,4]]}
[]
[null,"Referència convocatòria:",null,{"$f":"IF('1 -Informe d''admesos i exclosos'!D5=\"\",\"\",'1 -Informe d''admesos i exclosos'!D5)","v":""}]
[null,"Departament: ",null,{"$f":"IF('1 -Informe d''admesos i exclosos'!D6=\"\",\"\",'1 -Informe d''admesos i exclosos'!D6)","v":""}]
[null,"Categoria:",null,{"$f":"IF('1 -Informe d''admesos i exclosos'!D7=\"\",\"\",'1 -Informe d''admesos i exclosos'!D7)","v":""}]
[null,"Investigador principal"]
[null,"Cognoms i nom:",null,{"$f":"IF('1 -Informe d''admesos i exclosos'!D9=\"\",\"\",'1 -Informe d''admesos i exclosos'!D9)","v":""}]
[null,"Càrrec:",null,{"$f":"IF('1 -Informe d''admesos i exclosos'!D10=\"\",\"\",'1 -Informe d''admesos i exclosos'!D10)","v":""}]
[]
[]
[null,"Criteris de selecció ",null,"Puntuació criteri","Barem"]
[null,1,"Expedient acadèmic "]
[null,2,"Experiència laboral"]
[null,3]
[null,4]
[null,5]
[null,null,"TOTAL",{"$f":"IF(D11=\"\",\"\",SUM(D11:D15))","v":""}]
[null,null,null,{"$f":"IF(D11=\"\",\"\",IF(D16<>100,\"La suma no dona 100. Cal esmenar-ho\",\"\"))","v":""}]

{"sheet":"3 - Informe de selecció","index":3,"n_rows":185,"n_cols":7,"rows_kept":185,"cut":false,"hidden":false,"merged":[[11,1,15,1],[11,2,15,2],[18,2,22,2],[25,2,29,2],[1,1,1,5],[7,1,7,2],[8,1,8,2],[6,1,6,4],[7,3,7,4],[8,3,8,4],[3,3,3,4],[4,3,4,4],[5,3,5,4],[3,1,3,2],[4,1,4,2],[5,1,5,2],[32,2,36,2],[18,1,22,1],[53,1,57,1],[53,2,57,2],[60,1,64,1],[60,2,64,2],[39,2,43,2],[46,2,50,2],[25,1,29,1],[32,1,36,1],[39,1,43,1],[46,1,50,1],[67,1,71,1],[67,2,71,2],[74,1,78,1],[74,2,78,2],[81,1,85,1],[81,2,85,2],[88,1,92,1],[88,2,92,2],[95,1,99,1],[95,2,99,2],[102,1,106,1],[102,2,106,2],[109,1,113,1],[109,2,113,2],[116,1,120,1],[116,2,120,2],[123,1,127,1],[123,2,127,2],[130,1,134,1],[130,2,134,2],[137,1,141,1],[137,2,141,2],[144,1,148,1],[144,2,148,2],[172,1,176,1],[172,2,176,2],[179,1,183,1],[179,2,183,2],[151,1,155,1],[151,2,155,2],[158,1,162,1],[158,2,162,2],[165,1,169,1],[165,2,169,2]]}
[]
[null,"INFORME DE SELECCIÓ"]
[]
[null,"Referència convocatòria:",null,{"$f":"IF('1 -Informe d''admesos i exclosos'!D5=\"\",\"\",'1 -Informe d''admesos i exclosos'!D5)","v":""}]
[null,"Departament: ",null,{"$f":"IF('1 -Informe d''admesos i exclosos'!D6=\"\",\"\",'1 -Informe d''admesos i exclosos'!D6)","v":""}]
[null,"Categoria:",null,{"$f":"IF('1 -Informe d''admesos i exclosos'!D7=\"\",\"\",'1 -Informe d''admesos i exclosos'!D7)","v":""}]
[null,"Investigador principal"]
[null,"Cognoms i nom:",null,{"$f":"IF('1 -Informe d''admesos i exclosos'!D9=\"\",\"\",'1 -Informe d''admesos i exclosos'!D9)","v":""}]
[null,"Càrrec:",null,{"$f":"IF('1 -Informe d''admesos i exclosos'!D10=\"\",\"\",'1 -Informe d''admesos i exclosos'!D10)","v":""}]
[]
[null,"Candidat","Cognoms i nom","Criteri","Puntuació criteri","Motivació puntuació "]
[null,1,{"$f":"IF(OR('1 -Informe d''admesos i exclosos'!C13=\"\",'1 -Informe d''admesos i exclosos'!D13=\"Exclòs\",'1 -Informe d''admesos i exclosos'!D13=\"\"),\"\",UPPER('1 -Informe d''admesos i exclosos'!C13))","v":""},{"$f":"IF(C12<>\"\",\"Expedient Acadèmic\",\"\")","v":""},null,null,{"$f":"IF(E12>'2 - Criteris i barems'!$D$11,\"Puntuació més alta que la puntuació màxima del criteri. Cal esmenar-ho\",\"\")","v":""}]
[null,null,null,{"$f":"IF(C12<>\"\",\"Experiència Laboral\",\"\")","v":""},null,null,{"$f":"IF(E13>'2 - Criteris i barems'!$D$12,\"Puntuació més alta que la puntuació màxima del criteri. Cal esmenar-ho\",\"\")","v":""}]
[null,null,null,{"$f":"IF(AND(C12<>\"\",'2 - Criteris i barems'!$D$13<>\"\"),\"Idiomes\",\"\")","v":""},null,null,{"$f":"IF(E14>'2 - Criteris i barems'!$D$13,\"Puntuació més alta que la puntuació màxima del criteri. Cal esmenar-ho\",\"\")","v":""}]
[null,null,null,{"$f":"IF(AND(C12<>\"\",'2 - Criteris i barems'!$D$14<>\"\"),\"Entrevista\",\"\")","v":""},null,null,{"$f":"IF(E15>'2 - Criteris i barems'!$D$14,\"Puntuació més alta que la puntuació màxima del criteri. Cal esmenar-ho\",\"\")","v":""}]
[null,null,null,{"$f":"IF(AND(C12<>\"\",'2 - Criteris i barems'!$D$15<>\"\"),'2 - Criteris i barems'!$C$15,\"\")","v":""},null,null,{"$f":"IF(E16>'2 - Criteris i barems'!$D$15,\"Puntuació més alta que la puntuació màxima del criteri. Cal esmenar-ho\",\"\")","v":""}]
[null,null,null,"TOTAL",{"$f":"SUM(E12:E16)","v":0},{"$f":"IF(E17=0,\"\",IF(E17>=100,\"La suma és superior a 100. Cal esmenar-ho\",\"\"))","v":""}]
[]
[null,2,{"$f":"IF(OR('1 -Informe d''admesos i exclosos'!C14=\"\",'1 -Informe d''admesos i exclosos'!D14=\"Exclòs\",'1 -Informe d''admesos i exclosos'!D14=\"\"),\"\",UPPER('1 -Informe d''admesos i exclosos'!C14))","v":""},{"$f":"IF(C19<>\"\",\"Expedient Acadèmic\",\"\")","v":""},null,null,{"$f":"IF(E19>'2 - Criteris i barems'!$D$11,\"Puntuació més alta que la puntuació màxima del criteri. Cal esmenar-ho\",\"\")","v":""}]
[null,null,null,{"$f":"IF(C19<>\"\",\"Experiència Laboral\",\"\")","v":""},null,null,{"$f":"IF(E20>'2 - Criteris i barems'!$D$12,\"Puntuació més alta que la puntuació màxima del criteri. Cal esmenar-ho\",\"\")","v":""}]
[null,null,null,{"$f":"IF(AND(C19<>\"\",'2 - Criteris i barems'!$D$13<>\"\"),\"Idiomes\",\"\")","v":""},null,null,{"$f":"IF(E21>'2 - Criteris i barems'!$D$13,\"Puntuació més alta que la puntuació màxima del criteri. Cal esmenar-ho\",\"\")","v":""}]
[null,null,null,{"$f":"IF(AND(C19<>\"\",'2 - Criteris i barems'!$D$14<>\"\"),\"Entrevista\",\"\")","v":""},null,null,{"$f":"IF(E22>'2 - Criteris i barems'!$D$14,\"Puntuació més alta que la puntuació màxima del criteri. Cal esmenar-ho\",\"\")","v":""}]
[null,null,null,{"$f":"IF(AND(C19<>\"\",'2 - Criteris i barems'!$D$15<>\"\"),'2 - Criteris i barems'!$C$15,\"\")","v":""},null,null,{"$f":"IF(E23>'2 - Criteris i barems'!$D$15,\"Puntuació més alta que la puntuació màxima del criteri. Cal esmenar-ho\",\"\")","v":""}]
[null,null,null,"TOTAL",{"$f":"SUM(E19:E23)","v":0},{"$f":"IF(E24=0,\"\",IF(E24>=100,\"La suma és superior a 100. Cal esmenar-ho\",\"\"))","v":""}]
[]
[null,3,{"$f":"IF(OR('1 -Informe d''admesos i exclosos'!C15=\"\",'1 -Informe d''admesos i exclosos'!D15=\"Exclòs\",'1 -Informe d''admesos i exclosos'!D15=\"\"),\"\",UPPER('1 -Informe d''admesos i exclosos'!C15))","v":""},{"$f":"IF(C26<>\"\",\"Expedient Acadèmic\",\"\")","v":""},null,null,{"$f":"IF(E26>'2 - Criteris i barems'!$D$11,\"Puntuació més alta que la puntuació màxima del criteri. Cal esmenar-ho\",\"\")","v":""}]
[null,null,null,{"$f":"IF(C26<>\"\",\"Experiència Laboral\",\"\")","v":""},null,null,{"$f":"IF(E27>'2 - Criteris i barems'!$D$12,\"Puntuació més alta que la puntuació màxima del criteri. Cal esmenar-ho\",\"\")","v":""}]
[null,null,null,{"$f":"IF(AND(C26<>\"\",'2 - Criteris i barems'!$D$13<>\"\"),\"Idiomes\",\"\")","v":""},null,null,{"$f":"IF(E28>'2 - Criteris i barems'!$D$13,\"Puntuació més alta que la puntuació màxima del criteri. Cal esmenar-ho\",\"\")","v":""}]
[null,null,null,{"$f":"IF(AND(C26<>\"\",'2 - Criteris i barems'!$D$14<>\"\"),\"Entrevista\",\"\")","v":""},null,null,{"$f":"IF(E29>'2 - Criteris i barems'!$D$14,\"Puntuació més alta que la puntuació màxima del criteri. Cal esmenar-ho\",\"\")","v":""}]
[null,null,null,{"$f":"IF(AND(C26<>\"\",'2 - Criteris i barems'!$D$15<>\"\"),'2 - Criteris i barems'!$C$15,\"\")","v":""},null,null,{"$f":"IF(E30>'2 - Criteris i barems'!$D$15,\"Puntuació més alta que la puntuació màxima del criteri. Cal esmenar-ho\",\"\")","v":""}]
[null,null,null,"TOTAL",{"$f":"SUM(E26:E30)","v":0},{"$f":"IF(E31=0,\"\",IF(E31>=100,\"La suma és superior a 100. Cal esmenar-ho\",\"\"))","v":""}]
[]
[null,4,{"$f":"IF(OR('1 -Informe d''admesos i exclosos'!C16=\"\",'1 -Informe d''admesos i exclosos'!D16=\"Exclòs\",'1 -Informe d''admesos i exclosos'!D16=\"\"),\"\",UPPER('1 -Informe d''admesos i exclosos'!C16))","v":""},{"$f":"IF(C33<>\"\",\"Expedient Acadèmic\",\"\")","v":""},null,null,{"$f":"IF(E33>'2 - Criteris i barems'!$D$11,\"Puntuació més alta que la puntuació màxima del criteri. Cal esmenar-ho\",\"\")","v":""}]
[null,null,null,{"$f":"IF(C33<>\"\",\"Experiència Laboral\",\"\")","v":""},null,null,{"$f":"IF(E34>'2 - Criteris i barems'!$D$12,\"Puntuació més alta que la puntuació màxima del criteri. Cal esmenar-ho\",\"\")","v":""}]
[null,null,null,{"$f":"IF(AND(C33<>\"\",'2 - Criteris i barems'!$D$13<>\"\"),\"Idiomes\",\"\")","v":""},null,null,{"$f":"IF(E35>'2 - Criteris i barems'!$D$13,\"Puntuació més alta que la puntuació màxima del criteri. Cal esmenar-ho\",\"\")","v":""}]
[null,null,null,{"$f":"IF(AND(C33<>\"\",'2 - Criteris i barems'!$D$14<>\"\"),\"Entrevista\",\"\")","v":""},null,null,{"$f":"IF(E36>'2 - Criteris i barems'!$D$14,\"Puntuació més alta que la puntuació màxima del criteri. Cal esmenar-ho\",\"\")","v":""}]
[null,null,null,{"$f":"IF(AND(C33<>\"\",'2 - Criteris i barems'!$D$15<>\"\"),'2 - Criteris i barems'!$C$15,\"\")","v":""},null,null,{"$f":"IF(E37>'2 - Criteris i barems'!$D$15,\"Puntuació més alta que la puntuació màxima del criteri. Cal esmenar-ho\",\"\")","v":""}]
[null,null,null,"TOTAL",{"$f":"SUM(E33:E37)","v":0},{"$f":"IF(E38=0,\"\",IF(E38>=100,\"La suma és superior a 100. Cal esmenar-ho\",\"\"))","v":""}]
[]
[null,5,{"$f":"IF(OR('1 -Informe d''admesos i exclosos'!C17=\"\",'1 -Informe d''admesos i exclosos'!D17=\"Exclòs\",'1 -Informe d''admesos i exclosos'!D17=\"\"),\"\",UPPER('1 -Informe d''admesos i exclosos'!C17))","v":""},{"$f":"IF(C40<>\"\",\"Expedient Acadèmic\",\"\")","v":""},null,null,{"$f":"IF(E40>'2 - Criteris i barems'!$D$11,\"Puntuació més alta que la puntuació màxima del criteri. Cal esmenar-ho\",\"\")","v":""}]
[null,null,null,{"$f":"IF(C40<>\"\",\"Experiència Laboral\",\"\")","v":""},null,null,{"$f":"IF(E41>'2 - Criteris i barems'!$D$12,\"Puntuació més alta que la puntuació màxima del criteri. Cal esmenar-ho\",\"\")","v":""}]
[null,null,null,{"$f":"IF(AND(C40<>\"\",'2 - Criteris i barems'!$D$13<>\"\"),\"Idiomes\",\"\")","v":""},null,null,{"$f":"IF(E42>'2 - Criteris i barems'!$D$13,\"Puntuació més alta que la puntuació màxima del criteri. Cal esmenar-ho\",\"\")","v":""}]
[null,null,null,{"$f":"IF(AND(C40<>\"\",'2 - Criteris i barems'!$D$14<>\"\"),\"Entrevista\",\"\")","v":""},null,null,{"$f":"IF(E43>'2 - Criteris i barems'!$D$14,\"Puntuació més alta que la puntuació màxima del criteri. Cal esmenar-ho\",\"\")","v":""}]
[null,null,null,{"$f":"IF(AND(C40<>\"\",'2 - Criteris i barems'!$D$15<>\"\"),'2 - Criteris i barems'!$C$15,\"\")","v":""},null,null,{"$f":"IF(E44>'2 - Criteris i barems'!$D$15,\"Puntuació més alta que la puntuació màxima del criteri. Cal esmenar-ho\",\"\")","v":""}]
[null,null,null,"TOTAL",{"$f":"SUM(E40:E44)","v":0},{"$f":"IF(E45=0,\"\",IF(E45>=100,\"La suma és superior a 100. Cal esmenar-ho\",\"\"))","v":""}]
[]
[null,6,{"$f":"IF(OR('1 -Informe d''admesos i exclosos'!C18=\"\",'1 -Informe d''admesos i exclosos'!D18=\"Exclòs\",'1 -Informe d''admesos i exclosos'!D18=\"\"),\"\",UPPER('1 -Informe d''admesos i exclosos'!C18))","v":""},{"$f":"IF(C47<>\"\",\"Expedient Acadèmic\",\"\")","v":""},null,null,{"$f":"IF(E47>'2 - Criteris i barems'!$D$11,\"Puntuació més alta que la puntuació màxima del criteri. Cal esmenar-ho\",\"\")","v":""}]
[null,null,null,{"$f":"IF(C47<>\"\",\"Experiència Laboral\",\"\")","v":""},null,null,{"$f":"IF(E48>'2 - Criteris i barems'!$D$12,\"Puntuació més alta que la puntuació màxima del criteri. Cal esmenar-ho\",\"\")","v":""}]
[null,null,null,{"$f":"IF(AND(C47<>\"\",'2 - Criteris i barems'!$D$13<>\"\"),\"Idiomes\",\"\")","v":""},null,null,{"$f":"IF(E49>'2 - Criteris i barems'!$D$13,\"Puntuació més alta que la puntuació màxima del criteri. Cal esmenar-ho\",\"\")","v":""}]
[null,null,null,{"$f":"IF(AND(C47<>\"\",'2 - Criteris i barems'!$D$14<>\"\"),\"Entrevista\",\"\")","v":""},null,null,{"$f":"IF(E50>'2 - Criteris i barems'!$D$14,\"Puntuació més alta que la puntuació màxima del criteri. Cal esmenar-ho\",\"\")","v":""}]
[null,null,null,{"$f":"IF(AND(C47<>\"\",'2 - Criteris i barems'!$D$15<>\"\"),'2 - Criteris i barems'!$C$15,\"\")","v":""},null,null,{"$f":"IF(E51>'2 - Criteris i barems'!$D$15,\"Puntuació més alta que la puntuació màxima del criteri. Cal esmenar-ho\",\"\")","v":""}]
[null,null,null,"TOTAL",{"$f":"SUM(E47:E51)","v":0},{"$f":"IF(E52=0,\"\",IF(E52>=100,\"La suma és superior a 100. Cal esmenar-ho\",\"\"))","v":""}]
[]
[null,7,{"$f":"IF(OR('1 -Informe d''admesos i exclosos'!C19=\"\",'1 -Informe d''admesos i exclosos'!D19=\"Exclòs\",'1 -Informe d''admesos i exclosos'!D19=\"\"),\"\",UPPER('1 -Informe d''admesos i exclosos'!C19))","v":""},{"$f":"IF(C54<>\"\",\"Expedient Acadèmic\",\"\")","v":""},null,null,{"$f":"IF(E54>'2 - Criteris i barems'!$D$11,\"Puntuació més alta que la puntuació màxima del criteri. Cal esmenar-ho\",\"\")","v":""}]
[null,null,null,{"$f":"IF(C54<>\"\",\"Experiència Laboral\",\"\")","v":""},null,null,{"$f":"IF(E55>'2 - Criteris i barems'!$D$12,\"Puntuació més alta que la puntuació màxima del criteri. Cal esmenar-ho\",\"\")","v":""}]
[null,null,null,{"$f":"IF(AND(C54<>\"\",'2 - Criteris i barems'!$D$13<>\"\"),\"Idiomes\",\"\")","v":""},null,null,{"$f":"IF(E56>'2 - Criteris i barems'!$D$13,\"Puntuació més alta que la puntuació màxima del criteri. Cal esmenar-ho\",\"\")","v":""}]
[null,null,null,{"$f":"IF(AND(C54<>\"\",'2 - Criteris i barems'!$D$14<>\"\"),\"Entrevista\",\"\")","v":""},null,null,{"$f":"IF(E57>'2 - Criteris i barems'!$D$14,\"Puntuació més alta que la puntuació màxima del criteri. Cal esmenar-ho\",\"\")","v":""}]
[null,null,null,{"$f":"IF(AND(C54<>\"\",'2 - Criteris i barems'!$D$15<>\"\"),'2 - Criteris i barems'!$C$15,\"\")","v":""},null,null,{"$f":"IF(E58>'2 - Criteris i barems'!$D$15,\"Puntuació més alta que la puntuació màxima del criteri. Cal esmenar-ho\",\"\")","v":""}]
[null,null,null,"TOTAL",{"$f":"SUM(E54:E58)","v":0},{"$f":"IF(E59=0,\"\",IF(E59>=100,\"La suma és superior a 100. Cal esmenar-ho\",\"\"))","v":""}]
[]
[null,8,{"$f":"IF(OR('1 -Informe d''admesos i exclosos'!C20=\"\",'1 -Informe d''admesos i exclosos'!D20=\"Exclòs\",'1 -Informe d''admesos i exclosos'!D20=\"\"),\"\",UPPER('1 -Informe d''admesos i exclosos'!C20))","v":""},{"$f":"IF(C61<>\"\",\"Expedient Acadèmic\",\"\")","v":""},null,null,{"$f":"IF(E61>'2 - Criteris i barems'!$D$11,\"Puntuació més alta que la puntuació màxima del criteri. Cal esmenar-ho\",\"\")","v":""}]
[null,null,null,{"$f":"IF(C61<>\"\",\"Experiència Laboral\",\"\")","v":""},null,null,{"$f":"IF(E62>'2 - Criteris i barems'!$D$12,\"Puntuació més alta que la puntuació màxima del criteri. Cal esmenar-ho\",\"\")","v":""}]
[null,null,null,{"$f":"IF(AND(C61<>\"\",'2 - Criteris i barems'!$D$13<>\"\"),\"Idiomes\",\"\")","v":""},null,null,{"$f":"IF(E63>'2 - Criteris i barems'!$D$13,\"Puntuació més alta que la puntuació màxima del criteri. Cal esmenar-ho\",\"\")","v":""}]
[null,null,null,{"$f":"IF(AND(C61<>\"\",'2 - Criteris i barems'!$D$14<>\"\"),\"Entrevista\",\"\")","v":""},null,null,{"$f":"IF(E64>'2 - Criteris i barems'!$D$14,\"Puntuació més alta que la puntuació màxima del criteri. Cal esmenar-ho\",\"\")","v":""}]
[null,null,null,{"$f":"IF(AND(C61<>\"\",'2 - Criteris i barems'!$D$15<>\"\"),'2 - Criteris i barems'!$C$15,\"\")","v":""},null,null,{"$f":"IF(E65>'2 - Criteris i barems'!$D$15,\"Puntuació més alta que la puntuació màxima del criteri. Cal esmenar-ho\",\"\")","v":""}]
[null,null,null,"TOTAL",{"$f":"SUM(E61:E65)","v":0},{"$f":"IF(E66=0,\"\",IF(E66>=100,\"La suma és superior a 100. Cal esmenar-ho\",\"\"))","v":""}]
[]
[null,9,{"$f":"IF(OR('1 -Informe d''admesos i exclosos'!C21=\"\",'1 -Informe d''admesos i exclosos'!D21=\"Exclòs\",'1 -Informe d''admesos i exclosos'!D21=\"\"),\"\",UPPER('1 -Informe d''admesos i exclosos'!C21))","v":""},{"$f":"IF(C68<>\"\",\"Expedient Acadèmic\",\"\")","v":""},null,null,{"$f":"IF(E68>'2 - Criteris i barems'!$D$11,\"Puntuació més alta que la puntuació màxima del criteri. Cal esmenar-ho\",\"\")","v":""}]
[null,null,null,{"$f":"IF(C68<>\"\",\"Experiència Laboral\",\"\")","v":""},null,null,{"$f":"IF(E69>'2 - Criteris i barems'!$D$12,\"Puntuació més alta que la puntuació màxima del criteri. Cal esmenar-ho\",\"\")","v":""}]
[null,null,null,{"$f":"IF(AND(C68<>\"\",'2 - Criteris i barems'!$D$13<>\"\"),\"Idiomes\",\"\")","v":""},null,null,{"$f":"IF(E70>'2 - Criteris i barems'!$D$13,\"Puntuació més alta que la puntuació màxima del criteri. Cal esmenar-ho\",\"\")","v":""}]
[null,null,null,{"$f":"IF(AND(C68<>\"\",'2 - Criteris i barems'!$D$14<>\"\"),\"Entrevista\",\"\")","v":""},null,null,{"$f":"IF(E71>'2 - Criteris i barems'!$D$14,\"Puntuació més alta que la puntuació màxima del criteri. Cal esmenar-ho\",\"\")","v":""}]
[null,null,null,{"$f":"IF(AND(C68<>\"\",'2 - Criteris i barems'!$D$15<>\"\"),'2 - Criteris i barems'!$C$15,\"\")","v":""},null,null,{"$f":"IF(E72>'2 - Criteris i barems'!$D$15,\"Puntuació més alta que la puntuació màxima del criteri. Cal esmenar-ho\",\"\")","v":""}]
[null,null,null,"TOTAL",{"$f":"SUM(E68:E72)","v":0},{"$f":"IF(E73=0,\"\",IF(E73>=100,\"La suma és superior a 100. Cal esmenar-ho\",\"\"))","v":""}]
[]
[null,10,{"$f":"IF(OR('1 -Informe d''admesos i exclosos'!C22=\"\",'1 -Informe d''admesos i exclosos'!D22=\"Exclòs\",'1 -Informe d''admesos i exclosos'!D22=\"\"),\"\",UPPER('1 -Informe d''admesos i exclosos'!C22))","v":""},{"$f":"IF(C75<>\"\",\"Expedient Acadèmic\",\"\")","v":""},null,null,{"$f":"IF(E75>'2 - Criteris i barems'!$D$11,\"Puntuació més alta que la puntuació màxima del criteri. Cal esmenar-ho\",\"\")","v":""}]
[null,null,null,{"$f":"IF(C75<>\"\",\"Experiència Laboral\",\"\")","v":""},null,null,{"$f":"IF(E76>'2 - Criteris i barems'!$D$12,\"Puntuació més alta que la puntuació màxima del criteri. Cal esmenar-ho\",\"\")","v":""}]
[null,null,null,{"$f":"IF(AND(C75<>\"\",'2 - Criteris i barems'!$D$13<>\"\"),\"Idiomes\",\"\")","v":""},null,null,{"$f":"IF(E77>'2 - Criteris i barems'!$D$13,\"Puntuació més alta que la puntuació màxima del criteri. Cal esmenar-ho\",\"\")","v":""}]
[null,null,null,{"$f":"IF(AND(C75<>\"\",'2 - Criteris i barems'!$D$14<>\"\"),\"Entrevista\",\"\")","v":""},null,null,{"$f":"IF(E78>'2 - Criteris i barems'!$D$14,\"Puntuació més alta que la puntuació màxima del criteri. Cal esmenar-ho\",\"\")","v":""}]
[null,null,null,{"$f":"IF(AND(C75<>\"\",'2 - Criteris i barems'!$D$15<>\"\"),'2 - Criteris i barems'!$C$15,\"\")","v":""},null,null,{"$f":"IF(E79>'2 - Criteris i barems'!$D$15,\"Puntuació més alta que la puntuació màxima del criteri. Cal esmenar-ho\",\"\")","v":""}]
[null,null,null,"TOTAL",{"$f":"SUM(E75:E79)","v":0},{"$f":"IF(E80=0,\"\",IF(E80>=100,\"La suma és superior a 100. Cal esmenar-ho\",\"\"))","v":""}]
[]
[null,11,{"$f":"IF(OR('1 -Informe d''admesos i exclosos'!C23=\"\",'1 -Informe d''admesos i exclosos'!D23=\"Exclòs\",'1 -Informe d''admesos i exclosos'!D23=\"\"),\"\",UPPER('1 -Informe d''admesos i exclosos'!C23))","v":""},{"$f":"IF(C82<>\"\",\"Expedient Acadèmic\",\"\")","v":""},null,null,{"$f":"IF(E82>'2 - Criteris i barems'!$D$11,\"Puntuació més alta que la puntuació màxima del criteri. Cal esmenar-ho\",\"\")","v":""}]
[null,null,null,{"$f":"IF(C82<>\"\",\"Experiència Laboral\",\"\")","v":""},null,null,{"$f":"IF(E83>'2 - Criteris i barems'!$D$12,\"Puntuació més alta que la puntuació màxima del criteri. Cal esmenar-ho\",\"\")","v":""}]
[null,null,null,{"$f":"IF(AND(C82<>\"\",'2 - Criteris i barems'!$D$13<>\"\"),\"Idiomes\",\"\")","v":""},null,null,{"$f":"IF(E84>'2 - Criteris i barems'!$D$13,\"Puntuació més alta que la puntuació màxima del criteri. Cal esmenar-ho\",\"\")","v":""}]
[null,null,null,{"$f":"IF(AND(C82<>\"\",'2 - Criteris i barems'!$D$14<>\"\"),\"Entrevista\",\"\")","v":""},null,null,{"$f":"IF(E85>'2 - Criteris i barems'!$D$14,\"Puntuació més alta que la puntuació màxima del criteri. Cal esmenar-ho\",\"\")","v":""}]
[null,null,null,{"$f":"IF(AND(C82<>\"\",'2 - Criteris i barems'!$D$15<>\"\"),'2 - Criteris i barems'!$C$15,\"\")","v":""},null,null,{"$f":"IF(E86>'2 - Criteris i barems'!$D$15,\"Puntuació més alta que la puntuació màxima del criteri. Cal esmenar-ho\",\"\")","v":""}]
[null,null,null,"TOTAL",{"$f":"SUM(E82:E86)","v":0},{"$f":"IF(E87=0,\"\",IF(E87>=100,\"La suma és superior a 100. Cal esmenar-ho\",\"\"))","v":""}]
[]
[null,12,{"$f":"IF(OR('1 -Informe d''admesos i exclosos'!C24=\"\",'1 -Informe d''admesos i exclosos'!D24=\"Exclòs\",'1 -Informe d''admesos i exclosos'!D24=\"\"),\"\",UPPER('1 -Informe d''admesos i exclosos'!C24))","v":""},{"$f":"IF(C89<>\"\",\"Expedient Acadèmic\",\"\")","v":""},null,null,{"$f":"IF(E89>'2 - Criteris i barems'!$D$11,\"Puntuació més alta que la puntuació màxima del criteri. Cal esmenar-ho\",\"\")","v":""}]
[null,null,null,{"$f":"IF(C89<>\"\",\"Experiència Laboral\",\"\")","v":""},null,null,{"$f":"IF(E90>'2 - Criteris i barems'!$D$12,\"Puntuació més alta que la puntuació màxima del criteri. Cal esmenar-ho\",\"\")","v":""}]
[null,null,null,{"$f":"IF(AND(C89<>\"\",'2 - Criteris i barems'!$D$13<>\"\"),\"Idiomes\",\"\")","v":""},null,null,{"$f":"IF(E91>'2 - Criteris i barems'!$D$13,\"Puntuació més alta que la puntuació màxima del criteri. Cal esmenar-ho\",\"\")","v":""}]
[null,null,null,{"$f":"IF(AND(C89<>\"\",'2 - Criteris i barems'!$D$14<>\"\"),\"Entrevista\",\"\")","v":""},null,null,{"$f":"IF(E92>'2 - Criteris i barems'!$D$14,\"Puntuació més alta que la puntuació màxima del criteri. Cal esmenar-ho\",\"\")","v":""}]
[null,null,null,{"$f":"IF(AND(C89<>\"\",'2 - Criteris i barems'!$D$15<>\"\"),'2 - Criteris i barems'!$C$15,\"\")","v":""},null,null,{"$f":"IF(E93>'2 - Criteris i barems'!$D$15,\"Puntuació més alta que la puntuació màxima del criteri. Cal esmenar-ho\",\"\")","v":""}]
[null,null,null,"TOTAL",{"$f":"SUM(E89:E93)","v":0},{"$f":"IF(E94=0,\"\",IF(E94>=100,\"La suma és superior a 100. Cal esmenar-ho\",\"\"))","v":""}]
[]
[null,13,{"$f":"IF(OR('1 -Informe d''admesos i exclosos'!C25=\"\",'1 -Informe d''admesos i exclosos'!D25=\"Exclòs\",'1 -Informe d''admesos i exclosos'!D25=\"\"),\"\",UPPER('1 -Informe d''admesos i exclosos'!C25))","v":""},{"$f":"IF(C96<>\"\",\"Expedient Acadèmic\",\"\")","v":""},null,null,{"$f":"IF(E96>'2 - Criteris i barems'!$D$11,\"Puntuació més alta que la puntuació màxima del criteri. Cal esmenar-ho\",\"\")","v":""}]
[null,null,null,{"$f":"IF(C96<>\"\",\"Experiència Laboral\",\"\")","v":""},null,null,{"$f":"IF(E97>'2 - Criteris i barems'!$D$12,\"Puntuació més alta que la puntuació màxima del criteri. Cal esmenar-ho\",\"\")","v":""}]
[null,null,null,{"$f":"IF(AND(C96<>\"\",'2 - Criteris i barems'!$D$13<>\"\"),\"Idiomes\",\"\")","v":""},null,null,{"$f":"IF(E98>'2 - Criteris i barems'!$D$13,\"Puntuació més alta que la puntuació màxima del criteri. Cal esmenar-ho\",\"\")","v":""}]
[null,null,null,{"$f":"IF(AND(C96<>\"\",'2 - Criteris i barems'!$D$14<>\"\"),\"Entrevista\",\"\")","v":""},null,null,{"$f":"IF(E99>'2 - Criteris i barems'!$D$14,\"Puntuació més alta que la puntuació màxima del criteri. Cal esmenar-ho\",\"\")","v":""}]
[null,null,null,{"$f":"IF(AND(C96<>\"\",'2 - Criteris i barems'!$D$15<>\"\"),'2 - Criteris i barems'!$C$15,\"\")","v":""},null,null,{"$f":"IF(E100>'2 - Criteris i barems'!$D$15,\"Puntuació més alta que la puntuació màxima del criteri. Cal esmenar-ho\",\"\")","v":""}]
[null,null,null,"TOTAL",{"$f":"SUM(E96:E100)","v":0},{"$f":"IF(E101=0,\"\",IF(E101>=100,\"La suma és superior a 100. Cal esmenar-ho\",\"\"))","v":""}]
[]
[null,14,{"$f":"IF(OR('1 -Informe d''admesos i exclosos'!C26=\"\",'1 -Informe d''admesos i exclosos'!D26=\"Exclòs\",'1 -Informe d''admesos i exclosos'!D26=\"\"),\"\",UPPER('1 -Informe d''admesos i exclosos'!C26))","v":""},{"$f":"IF(C103<>\"\",\"Expedient Acadèmic\",\"\")","v":""},null,null,{"$f":"IF(E103>'2 - Criteris i barems'!$D$11,\"Puntuació més alta que la puntuació màxima del criteri. Cal esmenar-ho\",\"\")","v":""}]
[null,null,null,{"$f":"IF(C103<>\"\",\"Experiència Laboral\",\"\")","v":""},null,null,{"$f":"IF(E104>'2 - Criteris i barems'!$D$12,\"Puntuació més alta que la puntuació màxima del criteri. Cal esmenar-ho\",\"\")","v":""}]
[null,null,null,{"$f":"IF(AND(C103<>\"\",'2 - Criteris i barems'!$D$13<>\"\"),\"Idiomes\",\"\")","v":""},null,null,{"$f":"IF(E105>'2 - Criteris i barems'!$D$13,\"Puntuació més alta que la puntuació màxima del criteri. Cal esmenar-ho\",\"\")","v":""}]
[null,null,null,{"$f":"IF(AND(C103<>\"\",'2 - Criteris i barems'!$D$14<>\"\"),\"Entrevista\",\"\")","v":""},null,null,{"$f":"IF(E106>'2 - Criteris i barems'!$D$14,\"Puntuació més alta que la puntuació màxima del criteri. Cal esmenar-ho\",\"\")","v":""}]
[null,null,null,{"$f":"IF(AND(C103<>\"\",'2 - Criteris i barems'!$D$15<>\"\"),'2 - Criteris i barems'!$C$15,\"\")","v":""},null,null,{"$f":"IF(E107>'2 - Criteris i barems'!$D$15,\"Puntuació més alta que la puntuació màxima del criteri. Cal esmenar-ho\",\"\")","v":""}]
[null,null,null,"TOTAL",{"$f":"SUM(E103:E107)","v":0},{"$f":"IF(E108=0,\"\",IF(E108>=100,\"La suma és superior a 100. Cal esmenar-ho\",\"\"))","v":""}]
[]
[null,15,{"$f":"IF(OR('1 -Informe d''admesos i exclosos'!C27=\"\",'1 -Informe d''admesos i exclosos'!D27=\"Exclòs\",'1 -Informe d''admesos i exclosos'!D27=\"\"),\"\",UPPER('1 -Informe d''admesos i exclosos'!C27))","v":""},{"$f":"IF(C110<>\"\",\"Expedient Acadèmic\",\"\")","v":""},null,null,{"$f":"IF(E110>'2 - Criteris i barems'!$D$11,\"Puntuació més alta que la puntuació màxima del criteri. Cal esmenar-ho\",\"\")","v":""}]
[null,null,null,{"$f":"IF(C110<>\"\",\"Experiència Laboral\",\"\")","v":""},null,null,{"$f":"IF(E111>'2 - Criteris i barems'!$D$12,\"Puntuació més alta que la puntuació màxima del criteri. Cal esmenar-ho\",\"\")","v":""}]
[null,null,null,{"$f":"IF(AND(C110<>\"\",'2 - Criteris i barems'!$D$13<>\"\"),\"Idiomes\",\"\")","v":""},null,null,{"$f":"IF(E112>'2 - Criteris i barems'!$D$13,\"Puntuació més alta que la puntuació màxima del criteri. Cal esmenar-ho\",\"\")","v":""}]
[null,null,null,{"$f":"IF(AND(C110<>\"\",'2 - Criteris i barems'!$D$14<>\"\"),\"Entrevista\",\"\")","v":""},null,null,{"$f":"IF(E113>'2 - Criteris i barems'!$D$14,\"Puntuació més alta que la puntuació màxima del criteri. Cal esmenar-ho\",\"\")","v":""}]
[null,null,null,{"$f":"IF(AND(C110<>\"\",'2 - Criteris i barems'!$D$15<>\"\"),'2 - Criteris i barems'!$C$15,\"\")","v":""},null,null,{"$f":"IF(E114>'2 - Criteris i barems'!$D$15,\"Puntuació més alta que la puntuació màxima del criteri. Cal esmenar-ho\",\"\")","v":""}]
[null,null,null,"TOTAL",{"$f":"SUM(E110:E114)","v":0},{"$f":"IF(E115=0,\"\",IF(E115>=100,\"La suma és superior a 100. Cal esmenar-ho\",\"\"))","v":""}]
[]
[null,16,{"$f":"IF(OR('1 -Informe d''admesos i exclosos'!C28=\"\",'1 -Informe d''admesos i exclosos'!D28=\"Exclòs\",'1 -Informe d''admesos i exclosos'!D28=\"\"),\"\",UPPER('1 -Informe d''admesos i exclosos'!C28))","v":""},{"$f":"IF(C117<>\"\",\"Expedient Acadèmic\",\"\")","v":""},null,null,{"$f":"IF(E117>'2 - Criteris i barems'!$D$11,\"Puntuació més alta que la puntuació màxima del criteri. Cal esmenar-ho\",\"\")","v":""}]
[null,null,null,{"$f":"IF(C117<>\"\",\"Experiència Laboral\",\"\")","v":""},null,null,{"$f":"IF(E118>'2 - Criteris i barems'!$D$12,\"Puntuació més alta que la puntuació màxima del criteri. Cal esmenar-ho\",\"\")","v":""}]
[null,null,null,{"$f":"IF(AND(C117<>\"\",'2 - Criteris i barems'!$D$13<>\"\"),\"Idiomes\",\"\")","v":""},null,null,{"$f":"IF(E119>'2 - Criteris i barems'!$D$13,\"Puntuació més alta que la puntuació màxima del criteri. Cal esmenar-ho\",\"\")","v":""}]
[null,null,null,{"$f":"IF(AND(C117<>\"\",'2 - Criteris i barems'!$D$14<>\"\"),\"Entrevista\",\"\")","v":""},null,null,{"$f":"IF(E120>'2 - Criteris i barems'!$D$14,\"Puntuació més alta que la puntuació màxima del criteri. Cal esmenar-ho\",\"\")","v":""}]
[null,null,null,{"$f":"IF(AND(C117<>\"\",'2 - Criteris i barems'!$D$15<>\"\"),'2 - Criteris i barems'!$C$15,\"\")","v":""},null,null,{"$f":"IF(E121>'2 - Criteris i barems'!$D$15,\"Puntuació més alta que la puntuació màxima del criteri. Cal esmenar-ho\",\"\")","v":""}]
[null,null,null,"TOTAL",{"$f":"SUM(E117:E121)","v":0},{"$f":"IF(E122=0,\"\",IF(E122>=100,\"La suma és superior a 100. Cal esmenar-ho\",\"\"))","v":""}]
[]
[null,17,{"$f":"IF(OR('1 -Informe d''admesos i exclosos'!C29=\"\",'1 -Informe d''admesos i exclosos'!D29=\"Exclòs\",'1 -Informe d''admesos i exclosos'!D29=\"\"),\"\",UPPER('1 -Informe d''admesos i exclosos'!C29))","v":""},{"$f":"IF(C124<>\"\",\"Expedient Acadèmic\",\"\")","v":""},null,null,{"$f":"IF(E124>'2 - Criteris i barems'!$D$11,\"Puntuació més alta que la puntuació màxima del criteri. Cal esmenar-ho\",\"\")","v":""}]
[null,null,null,{"$f":"IF(C124<>\"\",\"Experiència Laboral\",\"\")","v":""},null,null,{"$f":"IF(E125>'2 - Criteris i barems'!$D$12,\"Puntuació més alta que la puntuació màxima del criteri. Cal esmenar-ho\",\"\")","v":""}]
[null,null,null,{"$f":"IF(AND(C124<>\"\",'2 - Criteris i barems'!$D$13<>\"\"),\"Idiomes\",\"\")","v":""},null,null,{"$f":"IF(E126>'2 - Criteris i barems'!$D$13,\"Puntuació més alta que la puntuació màxima del criteri. Cal esmenar-ho\",\"\")","v":""}]
[null,null,null,{"$f":"IF(AND(C124<>\"\",'2 - Criteris i barems'!$D$14<>\"\"),\"Entrevista\",\"\")","v":""},null,null,{"$f":"IF(E127>'2 - Criteris i barems'!$D$14,\"Puntuació més alta que la puntuació màxima del criteri. Cal esmenar-ho\",\"\")","v":""}]
[null,null,null,{"$f":"IF(AND(C124<>\"\",'2 - Criteris i barems'!$D$15<>\"\"),'2 - Criteris i barems'!$C$15,\"\")","v":""},null,null,{"$f":"IF(E128>'2 - Criteris i barems'!$D$15,\"Puntuació més alta que la puntuació màxima del criteri. Cal esmenar-ho\",\"\")","v":""}]
[null,null,null,"TOTAL",{"$f":"SUM(E124:E128)","v":0},{"$f":"IF(E129=0,\"\",IF(E129>=100,\"La suma és superior a 100. Cal esmenar-ho\",\"\"))","v":""}]
[]
[null,18,{"$f":"IF(OR('1 -Informe d''admesos i exclosos'!C30=\"\",'1 -Informe d''admesos i exclosos'!D30=\"Exclòs\",'1 -Informe d''admesos i exclosos'!D30=\"\"),\"\",UPPER('1 -Informe d''admesos i exclosos'!C30))","v":""},{"$f":"IF(C131<>\"\",\"Expedient Acadèmic\",\"\")","v":""},null,null,{"$f":"IF(E131>'2 - Criteris i barems'!$D$11,\"Puntuació més alta que la puntuació màxima del criteri. Cal esmenar-ho\",\"\")","v":""}]
[null,null,null,{"$f":"IF(C131<>\"\",\"Experiència Laboral\",\"\")","v":""},null,null,{"$f":"IF(E132>'2 - Criteris i barems'!$D$12,\"Puntuació més alta que la puntuació màxima del criteri. Cal esmenar-ho\",\"\")","v":""}]
[null,null,null,{"$f":"IF(AND(C131<>\"\",'2 - Criteris i barems'!$D$13<>\"\"),\"Idiomes\",\"\")","v":""},null,null,{"$f":"IF(E133>'2 - Criteris i barems'!$D$13,\"Puntuació més alta que la puntuació màxima del criteri. Cal esmenar-ho\",\"\")","v":""}]
[null,null,null,{"$f":"IF(AND(C131<>\"\",'2 - Criteris i barems'!$D$14<>\"\"),\"Entrevista\",\"\")","v":""},null,null,{"$f":"IF(E134>'2 - Criteris i barems'!$D$14,\"Puntuació més alta que la puntuació màxima del criteri. Cal esmenar-ho\",\"\")","v":""}]
[null,null,null,{"$f":"IF(AND(C131<>\"\",'2 - Criteris i barems'!$D$15<>\"\"),'2 - Criteris i barems'!$C$15,\"\")","v":""},null,null,{"$f":"IF(E135>'2 - Criteris i barems'!$D$15,\"Puntuació més alta que la puntuació màxima del criteri. Cal esmenar-ho\",\"\")","v":""}]
[null,null,null,"TOTAL",{"$f":"SUM(E131:E135)","v":0},{"$f":"IF(E136=0,\"\",IF(E136>=100,\"La suma és superior a 100. Cal esmenar-ho\",\"\"))","v":""}]
[]
[null,19,{"$f":"IF(OR('1 -Informe d''admesos i exclosos'!C31=\"\",'1 -Informe d''admesos i exclosos'!D31=\"Exclòs\",'1 -Informe d''admesos i exclosos'!D31=\"\"),\"\",UPPER('1 -Informe d''admesos i exclosos'!C31))","v":""},{"$f":"IF(C138<>\"\",\"Expedient Acadèmic\",\"\")","v":""},null,null,{"$f":"IF(E138>'2 - Criteris i barems'!$D$11,\"Puntuació més alta que la puntuació màxima del criteri. Cal esmenar-ho\",\"\")","v":""}]
[null,null,null,{"$f":"IF(C138<>\"\",\"Experiència Laboral\",\"\")","v":""},null,null,{"$f":"IF(E139>'2 - Criteris i barems'!$D$12,\"Puntuació més alta que la puntuació màxima del criteri. Cal esmenar-ho\",\"\")","v":""}]
[null,null,null,{"$f":"IF(AND(C138<>\"\",'2 - Criteris i barems'!$D$13<>\"\"),\"Idiomes\",\"\")","v":""},null,null,{"$f":"IF(E140>'2 - Criteris i barems'!$D$13,\"Puntuació més alta que la puntuació màxima del criteri. Cal esmenar-ho\",\"\")","v":""}]
[null,null,null,{"$f":"IF(AND(C138<>\"\",'2 - Criteris i barems'!$D$14<>\"\"),\"Entrevista\",\"\")","v":""},null,null,{"$f":"IF(E141>'2 - Criteris i barems'!$D$14,\"Puntuació més alta que la puntuació màxima del criteri. Cal esmenar-ho\",\"\")","v":""}]
[null,null,null,{"$f":"IF(AND(C138<>\"\",'2 - Criteris i barems'!$D$15<>\"\"),'2 - Criteris i barems'!$C$15,\"\")","v":""},null,null,{"$f":"IF(E142>'2 - Criteris i barems'!$D$15,\"Puntuació més alta que la puntuació màxima del criteri. Cal esmenar-ho\",\"\")","v":""}]
[null,null,null,"TOTAL",{"$f":"SUM(E138:E142)","v":0},{"$f":"IF(E143=0,\"\",IF(E143>=100,\"La suma és superior a 100. Cal esmenar-ho\",\"\"))","v":""}]
[]
[null,20,{"$f":"IF(OR('1 -Informe d''admesos i exclosos'!C32=\"\",'1 -Informe d''admesos i exclosos'!D32=\"Exclòs\",'1 -Informe d''admesos i exclosos'!D32=\"\"),\"\",UPPER('1 -Informe d''admesos i exclosos'!C32))","v":""},{"$f":"IF(C145<>\"\",\"Expedient Acadèmic\",\"\")","v":""},null,null,{"$f":"IF(E145>'2 - Criteris i barems'!$D$11,\"Puntuació més alta que la puntuació màxima del criteri. Cal esmenar-ho\",\"\")","v":""}]
[null,null,null,{"$f":"IF(C145<>\"\",\"Experiència Laboral\",\"\")","v":""},null,null,{"$f":"IF(E146>'2 - Criteris i barems'!$D$12,\"Puntuació més alta que la puntuació màxima del criteri. Cal esmenar-ho\",\"\")","v":""}]
[null,null,null,{"$f":"IF(AND(C145<>\"\",'2 - Criteris i barems'!$D$13<>\"\"),\"Idiomes\",\"\")","v":""},null,null,{"$f":"IF(E147>'2 - Criteris i barems'!$D$13,\"Puntuació més alta que la puntuació màxima del criteri. Cal esmenar-ho\",\"\")","v":""}]
[null,null,null,{"$f":"IF(AND(C145<>\"\",'2 - Criteris i barems'!$D$14<>\"\"),\"Entrevista\",\"\")","v":""},null,null,{"$f":"IF(E148>'2 - Criteris i barems'!$D$14,\"Puntuació més alta que la puntuació màxima del criteri. Cal esmenar-ho\",\"\")","v":""}]
[null,null,null,{"$f":"IF(AND(C145<>\"\",'2 - Criteris i barems'!$D$15<>\"\"),'2 - Criteris i barems'!$C$15,\"\")","v":""},null,null,{"$f":"IF(E149>'2 - Criteris i barems'!$D$15,\"Puntuació més alta que la puntuació màxima del criteri. Cal esmenar-ho\",\"\")","v":""}]
[null,null,null,"TOTAL",{"$f":"SUM(E145:E149)","v":0},{"$f":"IF(E150=0,\"\",IF(E150>=100,\"La suma és superior a 100. Cal esmenar-ho\",\"\"))","v":""}]
[]
[null,21,{"$f":"IF(OR('1 -Informe d''admesos i exclosos'!C33=\"\",'1 -Informe d''admesos i exclosos'!D33=\"Exclòs\",'1 -Informe d''admesos i exclosos'!D33=\"\"),\"\",UPPER('1 -Informe d''admesos i exclosos'!C33))","v":""},{"$f":"IF(C152<>\"\",\"Expedient Acadèmic\",\"\")","v":""},null,null,{"$f":"IF(E152>'2 - Criteris i barems'!$D$11,\"Puntuació més alta que la puntuació màxima del criteri. Cal esmenar-ho\",\"\")","v":""}]
[null,null,null,{"$f":"IF(C152<>\"\",\"Experiència Laboral\",\"\")","v":""},null,null,{"$f":"IF(E153>'2 - Criteris i barems'!$D$12,\"Puntuació més alta que la puntuació màxima del criteri. Cal esmenar-ho\",\"\")","v":""}]
[null,null,null,{"$f":"IF(AND(C152<>\"\",'2 - Criteris i barems'!$D$13<>\"\"),\"Idiomes\",\"\")","v":""},null,null,{"$f":"IF(E154>'2 - Criteris i barems'!$D$13,\"Puntuació més alta que la puntuació màxima del criteri. Cal esmenar-ho\",\"\")","v":""}]
[null,null,null,{"$f":"IF(AND(C152<>\"\",'2 - Criteris i barems'!$D$14<>\"\"),\"Entrevista\",\"\")","v":""},null,null,{"$f":"IF(E155>'2 - Criteris i barems'!$D$14,\"Puntuació més alta que la puntuació màxima del criteri. Cal esmenar-ho\",\"\")","v":""}]
[null,null,null,{"$f":"IF(AND(C152<>\"\",'2 - Criteris i barems'!$D$15<>\"\"),'2 - Criteris i barems'!$C$15,\"\")","v":""},null,null,{"$f":"IF(E156>'2 - Criteris i barems'!$D$15,\"Puntuació més alta que la puntuació màxima del criteri. Cal esmenar-ho\",\"\")","v":""}]
[null,null,null,"TOTAL",{"$f":"SUM(E152:E156)","v":0},{"$f":"IF(E157=0,\"\",IF(E157>=100,\"La suma és superior a 100. Cal esmenar-ho\",\"\"))","v":""}]
[]
[null,22,{"$f":"IF(OR('1 -Informe d''admesos i exclosos'!C34=\"\",'1 -Informe d''admesos i exclosos'!D34=\"Exclòs\",'1 -Informe d''admesos i exclosos'!D34=\"\"),\"\",UPPER('1 -Informe d''admesos i exclosos'!C34))","v":""},{"$f":"IF(C159<>\"\",\"Expedient Acadèmic\",\"\")","v":""},null,null,{"$f":"IF(E159>'2 - Criteris i barems'!$D$11,\"Puntuació més alta que la puntuació màxima del criteri. Cal esmenar-ho\",\"\")","v":""}]
[null,null,null,{"$f":"IF(C159<>\"\",\"Experiència Laboral\",\"\")","v":""},null,null,{"$f":"IF(E160>'2 - Criteris i barems'!$D$12,\"Puntuació més alta que la puntuació màxima del criteri. Cal esmenar-ho\",\"\")","v":""}]
[null,null,null,{"$f":"IF(AND(C159<>\"\",'2 - Criteris i barems'!$D$13<>\"\"),\"Idiomes\",\"\")","v":""},null,null,{"$f":"IF(E161>'2 - Criteris i barems'!$D$13,\"Puntuació més alta que la puntuació màxima del criteri. Cal esmenar-ho\",\"\")","v":""}]
[null,null,null,{"$f":"IF(AND(C159<>\"\",'2 - Criteris i barems'!$D$14<>\"\"),\"Entrevista\",\"\")","v":""},null,null,{"$f":"IF(E162>'2 - Criteris i barems'!$D$14,\"Puntuació més alta que la puntuació màxima del criteri. Cal esmenar-ho\",\"\")","v":""}]
[null,null,null,{"$f":"IF(AND(C159<>\"\",'2 - Criteris i barems'!$D$15<>\"\"),'2 - Criteris i barems'!$C$15,\"\")","v":""},null,null,{"$f":"IF(E163>'2 - Criteris i barems'!$D$15,\"Puntuació més alta que la puntuació màxima del criteri. Cal esmenar-ho\",\"\")","v":""}]
[null,null,null,"TOTAL",{"$f":"SUM(E159:E163)","v":0},{"$f":"IF(E164=0,\"\",IF(E164>=100,\"La suma és superior a 100. Cal esmenar-ho\",\"\"))","v":""}]
[]
[null,23,{"$f":"IF(OR('1 -Informe d''admesos i exclosos'!C35=\"\",'1 -Informe d''admesos i exclosos'!D35=\"Exclòs\",'1 -Informe d''admesos i exclosos'!D35=\"\"),\"\",UPPER('1 -Informe d''admesos i exclosos'!C35))","v":""},{"$f":"IF(C166<>\"\",\"Expedient Acadèmic\",\"\")","v":""},null,null,{"$f":"IF(E166>'2 - Criteris i barems'!$D$11,\"Puntuació més alta que la puntuació màxima del criteri. Cal esmenar-ho\",\"\")","v":""}]
[null,null,null,{"$f":"IF(C166<>\"\",\"Experiència Laboral\",\"\")","v":""},null,null,{"$f":"IF(E167>'2 - Criteris i barems'!$D$12,\"Puntuació més alta que la puntuació màxima del criteri. Cal esmenar-ho\",\"\")","v":""}]
[null,null,null,{"$f":"IF(AND(C166<>\"\",'2 - Criteris i barems'!$D$13<>\"\"),\"Idiomes\",\"\")","v":""},null,null,{"$f":"IF(E168>'2 - Criteris i barems'!$D$13,\"Puntuació més alta que la puntuació màxima del criteri. Cal esmenar-ho\",\"\")","v":""}]
[null,null,null,{"$f":"IF(AND(C166<>\"\",'2 - Criteris i barems'!$D$14<>\"\"),\"Entrevista\",\"\")","v":""},null,null,{"$f":"IF(E169>'2 - Criteris i barems'!$D$14,\"Puntuació més alta que la puntuació màxima del criteri. Cal esmenar-ho\",\"\")","v":""}]
[null,null,null,{"$f":"IF(AND(C166<>\"\",'2 - Criteris i barems'!$D$15<>\"\"),'2 - Criteris i barems'!$C$15,\"\")","v":""},null,null,{"$f":"IF(E170>'2 - Criteris i barems'!$D$15,\"Puntuació més alta que la puntuació màxima del criteri. Cal esmenar-ho\",\"\")","v":""}]
[null,null,null,"TOTAL",{"$f":"SUM(E166:E170)","v":0},{"$f":"IF(E171=0,\"\",IF(E171>=100,\"La suma és superior a 100. Cal esmenar-ho\",\"\"))","v":""}]
[]
[null,24,{"$f":"IF(OR('1 -Informe d''admesos i exclosos'!C36=\"\",'1 -Informe d''admesos i exclosos'!D36=\"Exclòs\",'1 -Informe d''admesos i exclosos'!D36=\"\"),\"\",UPPER('1 -Informe d''admesos i exclosos'!C36))","v":""},{"$f":"IF(C173<>\"\",\"Expedient Acadèmic\",\"\")","v":""},null,null,{"$f":"IF(E173>'2 - Criteris i barems'!$D$11,\"Puntuació més alta que la puntuació màxima del criteri. Cal esmenar-ho\",\"\")","v":""}]
[null,null,null,{"$f":"IF(C173<>\"\",\"Experiència Laboral\",\"\")","v":""},null,null,{"$f":"IF(E174>'2 - Criteris i barems'!$D$12,\"Puntuació més alta que la puntuació màxima del criteri. Cal esmenar-ho\",\"\")","v":""}]
[null,null,null,{"$f":"IF(AND(C173<>\"\",'2 - Criteris i barems'!$D$13<>\"\"),\"Idiomes\",\"\")","v":""},null,null,{"$f":"IF(E175>'2 - Criteris i barems'!$D$13,\"Puntuació més alta que la puntuació màxima del criteri. Cal esmenar-ho\",\"\")","v":""}]
[null,null,null,{"$f":"IF(AND(C173<>\"\",'2 - Criteris i barems'!$D$14<>\"\"),\"Entrevista\",\"\")","v":""},null,null,{"$f":"IF(E176>'2 - Criteris i barems'!$D$14,\"Puntuació més alta que la puntuació màxima del criteri. Cal esmenar-ho\",\"\")","v":""}]
[null,null,null,{"$f":"IF(AND(C173<>\"\",'2 - Criteris i barems'!$D$15<>\"\"),'2 - Criteris i barems'!$C$15,\"\")","v":""},null,null,{"$f":"IF(E177>'2 - Criteris i barems'!$D$15,\"Puntuació més alta que la puntuació màxima del criteri. Cal esmenar-ho\",\"\")","v":""}]
[null,null,null,"TOTAL",{"$f":"SUM(E173:E177)","v":0},{"$f":"IF(E178=0,\"\",IF(E178>=100,\"La suma és superior a 100. Cal esmenar-ho\",\"\"))","v":""}]
[]
[null,25,{"$f":"IF(OR('1 -Informe d''admesos i exclosos'!C37=\"\",'1 -Informe d''admesos i exclosos'!D37=\"Exclòs\",'1 -Informe d''admesos i exclosos'!D37=\"\"),\"\",UPPER('1 -Informe d''admesos i exclosos'!C37))","v":""},{"$f":"IF(C180<>\"\",\"Expedient Acadèmic\",\"\")","v":""},null,null,{"$f":"IF(E180>'2 - Criteris i barems'!$D$11,\"Puntuació més alta que la puntuació màxima del criteri. Cal esmenar-ho\",\"\")","v":""}]
[null,null,null,{"$f":"IF(C180<>\"\",\"Experiència Laboral\",\"\")","v":""},null,null,{"$f":"IF(E181>'2 - Criteris i barems'!$D$12,\"Puntuació més alta que la puntuació màxima del criteri. Cal esmenar-ho\",\"\")","v":""}]
[null,null,null,{"$f":"IF(AND(C180<>\"\",'2 - Criteris i barems'!$D$13<>\"\"),\"Idiomes\",\"\")","v":""},null,null,{"$f":"IF(E182>'2 - Criteris i barems'!$D$13,\"Puntuació més alta que la puntuació màxima del criteri. Cal esmenar-ho\",\"\")","v":""}]
[null,null,null,{"$f":"IF(AND(C180<>\"\",'2 - Criteris i barems'!$D$14<>\"\"),\"Entrevista\",\"\")","v":""},null,null,{"$f":"IF(E183>'2 - Criteris i barems'!$D$14,\"Puntuació més alta que la puntuació màxima del criteri. Cal esmenar-ho\",\"\")","v":""}]
[null,null,null,{"$f":"IF(AND(C180<>\"\",'2 - Criteris i barems'!$D$15<>\"\"),'2 - Criteris i barems'!$C$15,\"\")","v":""},null,null,{"$f":"IF(E184>'2 - Criteris i barems'!$D$15,\"Puntuació més alta que la puntuació màxima del criteri. Cal esmenar-ho\",\"\")","v":""}]
[null,null,null,"TOTAL",{"$f":"SUM(E180:E184)","v":0},{"$f":"IF(E185=0,\"\",IF(E185>=100,\"La suma és superior a 100. Cal esmenar-ho\",\"\"))","v":""}]

{"sheet":"Desplegables","index":4,"n_rows":27,"n_cols":2,"rows_kept":27,"cut":false,"hidden":true,"merged":[]}
[]
[]
[]
[]
[]
[]
[]
[]
[]
[]
[null,"Admès "]
[null,"Exclòs"]
[]
[]
[null,"Tècnic superior de suport a la recerca"]
[null,"Tècnic mitjà de suport a la recerca"]
[null,"Tècnic especialista de suport a la recerca"]
[null,"Auxiliar de suport a la recerca"]
[null,"Investigador predoctoral"]
[null,"Investigador postdocoral"]
[null,"Investigador ordinari"]
[null,"Investigador distingit"]
[]
[]
[null,"Idiomes"]
[]
[null,"Entrevista"]